fUSD/lending_fUSD_20240409
["ID","MTS","AMOUNT","RATE_DAILY","PERIOD"]
[321986871,1712674249521,-500.0,0.00019543,2]
[321986872,1712674249531,-500.0,0.00019543,2]
[321986873,1712674249541,-874.36,0.00019543,2]
[321986874,1712674249551,-691.8,0.00019543,2]
[321986875,1712674249561,-500.0,0.00019543,2]
[321986876,1712674249571,-500.0,0.00019543,2]
[321986877,1712674249581,-500.0,0.00019543,2]
[321986878,1712674249590,-500.0,0.00019543,2]
[321986879,1712674249600,-500.0,0.00019543,2]
[321986880,1712674249610,-500.0,0.00019543,2]
[321986881,1712674249620,-6036.2,0.00019543,2]
[321986882,1712674249630,-500.0,0.00019543,2]
[321986883,1712674249640,-3378.52,0.00019543,2]
[321986884,1712674249649,-500.0,0.00019543,2]
[321986885,1712674249659,-3763.34,0.00019543,2]
[321986886,1712674249669,-500.0,0.00019543,2]
[321986887,1712674249678,-937.12,0.00019543,2]
[321986888,1712674249688,-500.0,0.00019543,2]
[321986889,1712674249698,-1090.12,0.00019543,2]
[321986890,1712674249708,-500.0,0.00019543,2]
[321986891,1712674249717,-500.0,0.00019543,2]
[321986892,1712674249730,-500.0,0.00019543,2]
[321986893,1712674249739,-1263.08,0.00019543,2]
[321986894,1712674249749,-500.0,0.00019543,2]
[321986895,1712674249758,-500.0,0.00019543,2]
[321986896,1712674249768,-1861.21,0.00019543,2]
[321986897,1712674249778,-500.0,0.00019543,2]
[321986898,1712674249787,-1623.73,0.00019543,2]
[321986899,1712674249797,-500.0,0.00019543,2]
[321986900,1712674249807,-32582.93,0.00019543,2]
[321986901,1712674249816,-500.0,0.00019543,2]
[321986902,1712674249826,-500.0,0.00019543,2]
[321986903,1712674249835,-1532.52,0.00019543,2]
[321986904,1712674249845,-500.0,0.00019543,2]
[321986905,1712674249854,-2758.67,0.00019543,2]
[321986906,1712674249863,-3284.97,0.00019543,2]
[321986907,1712674249873,-500.0,0.00019543,2]
[321986908,1712674249882,-500.0,0.00019543,2]
[321986909,1712674249892,-500.0,0.00019543,2]
[321986910,1712674249902,-2962.97,0.00019543,2]
[321986911,1712674249912,-150.0,0.00019543,2]
[321986912,1712674249921,-500.0,0.00019543,2]
[321986913,1712674249931,-500.0,0.00019543,2]
[321986914,1712674249941,-500.0,0.00019543,2]
[321986915,1712674249951,-1957.1,0.00019543,2]
[321986916,1712674249961,-500.0,0.00019543,2]
[321986917,1712674249970,-522.81875939,0.00019543,2]
[321986918,1712674249982,-9806.85,0.00019543,2]
[321986919,1712674249991,-2135.89,0.00019543,2]
[321986920,1712674250000,-500.0,0.00019543,2]
[321986921,1712674250009,-500.0,0.00019543,2]
[321986922,1712674250019,-500.0,0.00019543,2]
[321986923,1712674250029,-1797.01,0.00019543,2]
[321986924,1712674250038,-4410.97,0.00019543,2]
[321986925,1712674250048,-1170.81,0.00019543,2]
[321986926,1712674250058,-500.0,0.00019543,2]
[321986927,1712674250068,-2049.05,0.00019543,2]
[321986928,1712674250077,-1553.38,0.00019543,2]
[321986929,1712674250086,-318.91541356,0.00019543,2]
[321986930,1712674250096,-500.0,0.00019543,2]
[321986931,1712674250106,-4210.12,0.00019543,2]
[321986932,1712674250115,-578.69,0.00019543,2]
[321986933,1712674250125,-3769.19,0.00019543,2]
[321986934,1712674250134,-500.0,0.00019543,2]
[321986935,1712674250143,-500.0,0.00019543,2]
[321986936,1712674250153,-500.0,0.00019543,2]
[321986937,1712674250163,-500.0,0.00019543,2]
[321986938,1712674250172,-500.0,0.00019543,2]
[321986939,1712674250181,-500.0,0.00019543,2]
[321986940,1712674250191,-500.0,0.00019545,2]
[321986941,1712674250200,-500.0,0.00019545,2]
[321986942,1712674250210,-500.0,0.00019545,2]
[321986943,1712674250220,-477.26418537,0.00019545,2]
[321986944,1712674250233,-500.0,0.00019545,2]
[321986945,1712674250243,-500.0,0.00019545,2]
[321986946,1712674250252,-842.95,0.00019545,2]
[321986947,1712674250261,-500.0,0.00019545,2]
[321986948,1712674250271,-500.0,0.00019545,2]
[321986949,1712674250280,-617.66,0.00019545,2]
[321986950,1712674250289,-897.73,0.00019545,2]
[321986951,1712674250299,-700.34,0.00019545,2]
[321986952,1712674250309,-805.62,0.00019545,2]
[321986953,1712674250319,-639.45,0.00019545,2]
[321986954,1712674250329,-500.0,0.00019545,2]
[321986955,1712674250339,-500.0,0.00019545,2]
[321986956,1712674250348,-500.0,0.00019545,2]
[321986957,1712674250357,-833.8,0.00019545,2]
[321986958,1712674250442,-969.1,0.00019545,2]
[321986959,1712674250452,-500.0,0.00019545,2]
[321986960,1712674250462,-916.08,0.00019545,2]
[321986961,1712674250473,-500.0,0.00019545,2]
[321986962,1712674250486,-672.83,0.00019545,2]
[321986963,1712674250496,-624.08,0.00019545,2]
[321986964,1712674250506,-808.8,0.00019545,2]
[321986965,1712674250515,-500.0,0.00019545,2]
[321986966,1712674250525,-692.85,0.00019545,2]
[321986967,1712674250535,-500.0,0.00019545,2]
[321986968,1712674250544,-782.58,0.00019545,2]
[321986969,1712674250554,-712.41,0.00019545,2]
[321986970,1712674250564,-500.0,0.00019545,2]
[321986971,1712674250573,-500.0,0.00019545,2]
[321986972,1712674250583,-722.61,0.00019545,2]
[321986973,1712674250592,-632.47,0.00019545,2]
[321986974,1712674250602,-593.62,0.00019545,2]
[321986975,1712674250611,-314.49169169,0.00019545,2]
[321986976,1712674250621,-500.0,0.00019545,2]
[321986977,1712674250631,-1124.6,0.00019545,2]
[321986978,1712674250641,-1750.14,0.00019545,2]
[321986979,1712674250650,-695.99,0.00019545,2]
[321986980,1712674250661,-500.0,0.00019545,2]
[321986981,1712674250670,-500.0,0.00019545,2]
[321986982,1712674250680,-592.75,0.00019545,2]
[321986983,1712674250689,-1070.69,0.00019545,2]
[321986984,1712674250699,-500.0,0.00019545,2]
[321986985,1712674250708,-500.0,0.00019545,2]
[321986986,1712674250718,-1233.11,0.00019545,2]
[321986987,1712674250734,-798.38,0.00019545,2]
[321986988,1712674250745,-2517.11,0.00019545,2]
[321986989,1712674250755,-500.0,0.00019545,2]
[321986990,1712674250765,-358.13,0.00019545,2]
[321986991,1712674250775,-881.79,0.00019545,2]
[321986992,1712674250784,-967.92,0.00019545,2]
[321986993,1712674250793,-1542.87,0.00019545,2]
[321986994,1712674250803,-4055.53,0.00019545,2]
[321986995,1712674250813,-1278.07,0.00019545,2]
[321986996,1712674250823,-636.28,0.00019545,2]
[321986997,1712674250834,-570.57762833,0.00019545,2]
[321986998,1712674250844,-265.88910619,0.00019545,2]
[321986999,1712674251318,-343.828485,0.00019545,2]
[321987000,1712674251330,-1041.00240881,0.00019545,2]
[321987001,1712674251339,-759.09,0.00019545,2]
[321987002,1712674251348,-718.47,0.00019545,2]
[321987003,1712674251358,-922.43,0.00019545,2]
[321987004,1712674251367,-789.1,0.00019545,2]
[321987005,1712674251376,-1715.00756902,0.00019545,2]
[321987006,1712674251388,-737.77243098,0.00019545,2]
[321987007,1712674251397,-1037.91,0.00019545,2]
[321987008,1712674251407,-2600.08,0.00019545,2]
[321987009,1712674251417,-6200.47,0.00019545,2]
[321987010,1712674251426,-1423.9,0.00019545,2]
[321987011,1712674251437,-1921.2,0.00019545,2]
[321987012,1712674251446,-2792.91,0.00019545,2]
[321987013,1712674251456,-4077.97,0.00019545,2]
[321987014,1712674251466,-4995.28757002,0.00019545,2]
[321987015,1712674251482,-801.85242998,0.00019545,2]
[321987016,1712674251491,-5906.39,0.00019545,2]
[321987017,1712674251501,-1079.17,0.00019545,2]
[321987018,1712674251510,-500.0,0.00019545,2]
[321987019,1712674251519,-3361.33,0.00019545,2]
[321987020,1712674251529,-1284.77,0.00019545,2]
[321987021,1712674251538,-5886.08,0.00019545,2]
[321987022,1712674251548,-724.57,0.00019545,2]
[321987023,1712674251558,-299.98999788,0.00019545,2]
[321987024,1712674251567,-8496.55,0.00019545,2]
[321987025,1712674251577,-3430.69,0.00019545,2]
[321987026,1712674251587,-1816.11,0.00019545,2]
[321987027,1712674251596,-1112.14,0.00019545,2]
[321987028,1712674251606,-5799.7,0.00019545,2]
[321987029,1712674251616,-500.0,0.00019545,2]
[321987030,1712674251625,-3537.97,0.00019545,2]
[321987031,1712674251634,-3016.08,0.00019545,2]
[321987032,1712674251644,-500.0,0.00019545,2]
[321987033,1712674251654,-2166.03,0.00019545,2]
[321987034,1712674251664,-2170.75,0.00019545,2]
[321987035,1712674251675,-2793.14,0.00019545,2]
[321987036,1712674251685,-3131.87,0.00019545,2]
[321987037,1712674251694,-500.0,0.00019545,2]
[321987038,1712674251703,-2135.84,0.00019545,2]
[321987039,1712674251714,-12126.76,0.00019545,2]
[321987040,1712674251727,-508.37,0.00019545,2]
[321987041,1712674251737,-9268.95,0.00019545,2]
[321987042,1712674251747,-3108.86,0.00019545,2]
[321987043,1712674251757,-962.18,0.00019545,2]
[321987044,1712674251766,-1005.23,0.00019545,2]
[321987045,1712674251776,-28103.17,0.00019545,2]
[321987046,1712674251786,-500.0,0.00019545,2]
[321987047,1712674251796,-2891.01,0.00019545,2]
[321987048,1712674251807,-968.9,0.00019545,2]
[321987049,1712674251816,-1530.15,0.00019545,2]
[321987050,1712674251828,-1170.72,0.00019545,2]
[321987051,1712674251837,-731.76,0.00019545,2]
[321987052,1712674251850,-1001.01,0.00019545,2]
[321987053,1712674251860,-739.24,0.00019545,2]
[321987054,1712674251870,-1130.64,0.00019545,2]
[321987055,1712674251879,-500.0,0.00019545,2]
[321987056,1712674251889,-500.0,0.00019546,2]
[321987057,1712674251898,-500.0,0.00019546,2]
[321987058,1712674251909,-500.0,0.00019546,2]
[321987059,1712674251920,-500.0,0.00019546,2]
[321987060,1712674251932,-500.0,0.00019546,2]
[321987061,1712674251942,-500.0,0.00019546,2]
[321987062,1712674251957,-500.0,0.00019546,2]
[321987063,1712674251967,-500.0,0.00019546,2]
[321987064,1712674251979,-528.02,0.00019546,2]
[321987065,1712674251987,-559.25,0.00019546,2]
[321987066,1712674251997,-500.0,0.00019546,2]
[321987067,1712674252006,-702.59,0.00019546,2]
[321987068,1712674252015,-500.0,0.00019546,2]
[321987069,1712674252024,-500.0,0.00019546,2]
[321987070,1712674252034,-556.85,0.00019546,2]
[321987071,1712674252043,-500.0,0.00019546,2]
[321987072,1712674252053,-500.0,0.00019546,2]
[321987073,1712674252063,-319.26173534,0.00019546,2]
[321987074,1712674252072,-448.6398199,0.00019546,2]
[321987075,1712674252082,-500.0,0.00019546,2]
[321987076,1712674252091,-500.0,0.00019546,2]
[321987077,1712674252101,-500.0,0.00019546,2]
[321987078,1712674252110,-500.0,0.00019546,2]
[321987079,1712674252120,-500.0,0.00019546,2]
[321987080,1712674252130,-500.0,0.00019546,2]
[321987081,1712674252139,-581.29,0.00019546,2]
[321987082,1712674252149,-500.0,0.00019546,2]
[321987083,1712674252158,-500.0,0.00019546,2]
[321987084,1712674252168,-500.0,0.00019546,2]
[321987085,1712674252178,-500.0,0.00019546,2]
[321987086,1712674252187,-500.65,0.00019546,2]
[321987087,1712674252196,-500.0,0.00019546,2]
[321987088,1712674252206,-500.0,0.00019546,2]
[321987089,1712674252215,-502.57,0.00019546,2]
[321987090,1712674252229,-500.0,0.00019546,2]
[321987091,1712674252238,-665.51,0.00019546,2]
[321987092,1712674252248,-839.35,0.00019546,2]
[321987093,1712674252257,-500.0,0.00019546,2]
[321987094,1712674252267,-500.0,0.00019546,2]
[321987095,1712674252276,-500.0,0.00019546,2]
[321987096,1712674252285,-500.0,0.00019546,2]
[321987097,1712674252295,-500.0,0.00019546,2]
[321987098,1712674252305,-500.0,0.00019546,2]
[321987099,1712674252314,-500.0,0.00019546,2]
[321987100,1712674252323,-500.0,0.00019546,2]
[321987101,1712674252333,-768.05,0.00019546,2]
[321987102,1712674252343,-500.0,0.00019546,2]
[321987103,1712674252352,-500.0,0.00019546,2]
[321987104,1712674252361,-500.0,0.00019546,2]
[321987105,1712674252370,-500.0,0.00019546,2]
[321987106,1712674252379,-587.68,0.00019546,2]
[321987107,1712674252388,-500.0,0.00019546,2]
[321987108,1712674252397,-727.92,0.00019546,2]
[321987109,1712674252406,-500.0,0.00019546,2]
[321987110,1712674252414,-500.0,0.00019546,2]
[321987111,1712674252423,-500.0,0.00019546,2]
[321987112,1712674252433,-620.22,0.00019546,2]
[321987113,1712674252442,-500.0,0.00019546,2]
[321987114,1712674252451,-500.0,0.00019546,2]
[321987115,1712674252460,-520.31,0.00019546,2]
[321987116,1712674252469,-500.0,0.00019546,2]
[321987117,1712674252481,-500.0,0.00019546,2]
[321987118,1712674252490,-500.0,0.00019546,2]
[321987119,1712674252499,-550.68,0.00019546,2]
[321987120,1712674252508,-1218.05,0.00019546,2]
[321987121,1712674252518,-500.0,0.00019546,2]
[321987122,1712674252527,-500.0,0.00019546,2]
[321987123,1712674252537,-500.0,0.00019546,2]
[321987124,1712674252547,-500.0,0.00019546,2]
[321987125,1712674252556,-500.0,0.00019546,2]
[321987126,1712674252565,-553.65,0.00019546,2]
[321987127,1712674252575,-750.58,0.00019546,2]
[321987128,1712674252584,-500.0,0.00019546,2]
[321987129,1712674252594,-500.0,0.00019546,2]
[321987130,1712674252603,-733.34,0.00019546,2]
[321987131,1712674252613,-500.0,0.00019546,2]
[321987132,1712674252622,-507.35,0.00019546,2]
[321987133,1712674252631,-500.0,0.00019546,2]
[321987134,1712674252640,-967.27,0.00019546,2]
[321987135,1712674252650,-500.0,0.00019546,2]
[321987136,1712674252660,-547.31,0.00019546,2]
[321987137,1712674252670,-711.65,0.00019546,2]
[321987138,1712674252679,-500.0,0.00019546,2]
[321987139,1712674252688,-539.29,0.00019546,2]
[321987140,1712674252698,-500.0,0.00019546,2]
[321987141,1712674252707,-783.39,0.00019546,2]
[321987142,1712674252716,-500.0,0.00019546,2]
[321987143,1712674252727,-500.0,0.00019546,2]
[321987144,1712674252743,-500.0,0.00019546,2]
[321987145,1712674252753,-500.0,0.00019546,2]
[321987146,1712674252762,-500.0,0.00019546,2]
[321987147,1712674252771,-500.0,0.00019546,2]
[321987148,1712674252780,-500.0,0.00019546,2]
[321987149,1712674252789,-500.0,0.00019546,2]
[321987150,1712674252798,-678.2,0.00019546,2]
[321987151,1712674252807,-500.0,0.00019546,2]
[321987152,1712674252817,-500.0,0.00019546,2]
[321987153,1712674252826,-703.55,0.00019546,2]
[321987154,1712674252837,-552.05,0.00019546,2]
[321987155,1712674252846,-500.0,0.00019546,2]
[321987156,1712674252856,-500.0,0.00019546,2]
[321987157,1712674252866,-500.0,0.00019546,2]
[321987158,1712674252876,-809.79,0.00019546,2]
[321987159,1712674252885,-680.22,0.00019546,2]
[321987160,1712674252897,-653.3,0.00019546,2]
[321987161,1712674252909,-500.0,0.00019546,2]
[321987162,1712674252919,-500.0,0.00019546,2]
[321987163,1712674252929,-500.0,0.00019546,2]
[321987164,1712674252942,-500.0,0.00019546,2]
[321987165,1712674252951,-507.29,0.00019546,2]
[321987166,1712674252960,-500.0,0.00019546,2]
[321987167,1712674252969,-387.36199436,0.00019546,2]
[321987168,1712674252982,-903.8,0.00019546,2]
[321987169,1712674252992,-1568.58,0.00019546,2]
[321987170,1712674253001,-547.5,0.00019546,2]
[321987171,1712674253010,-649.28,0.00019546,2]
[321987172,1712674253020,-500.0,0.00019546,2]
[321987173,1712674253029,-500.0,0.00019546,2]
[321987174,1712674253038,-500.0,0.00019546,2]
[321987175,1712674253047,-500.0,0.00019546,2]
[321987176,1712674253057,-1047.68,0.00019546,2]
[321987177,1712674253066,-500.0,0.00019546,2]
[321987178,1712674253075,-1838.26,0.00019546,2]
[321987179,1712674253084,-500.0,0.00019546,2]
[321987180,1712674253093,-2093.46,0.00019546,2]
[321987181,1712674253104,-284.8890271,0.00019546,2]
[321987182,1712674253136,-665.46,0.00019546,2]
[321987183,1712674253145,-500.0,0.00019546,2]
[321987184,1712674253154,-517.31,0.00019546,2]
[321987185,1712674253163,-2147.22,0.00019546,2]
[321987186,1712674253172,-500.0,0.00019546,2]
[321987187,1712674253181,-500.0,0.00019546,2]
[321987188,1712674253191,-2080.77,0.00019546,2]
[321987189,1712674253200,-500.0,0.00019546,2]
[321987190,1712674253210,-611.62,0.00019546,2]
[321987191,1712674253219,-1190.95,0.00019546,2]
[321987192,1712674253231,-642.96,0.00019546,2]
[321987193,1712674253240,-500.0,0.00019546,2]
[321987194,1712674253249,-3370.62,0.00019546,2]
[321987195,1712674253260,-788.21,0.00019546,2]
[321987196,1712674253269,-2491.81,0.00019546,2]
[321987197,1712674253281,-637.6,0.00019546,2]
[321987198,1712674253291,-500.0,0.00019546,2]
[321987199,1712674253300,-271.78473244,0.00019546,2]
[321987200,1712674253311,-1120.41,0.00019546,2]
[321987201,1712674253321,-500.0,0.00019546,2]
[321987202,1712674253330,-28284.14,0.00019546,2]
[321987203,1712674253339,-425.3762216,0.00019546,2]
[321987204,1712674253348,-1040.0,0.00019546,2]
[321987205,1712674253358,-500.0,0.00019546,2]
[321987206,1712674253367,-463.03824475,0.00019546,2]
[321987207,1712674253378,-690.25,0.00019546,2]
[321987208,1712674253389,-513.95806284,0.00019546,2]
[321987209,1712674253398,-500.0,0.00019546,2]
[321987210,1712674253409,-653.93,0.00019546,2]
[321987211,1712674253418,-6681.82,0.00019546,2]
[321987212,1712674253428,-825.82,0.00019546,2]
[321987213,1712674253437,-500.0,0.00019546,2]
[321987214,1712674253447,-500.0,0.00019546,2]
[321987215,1712674253457,-500.0,0.00019546,2]
[321987216,1712674253466,-500.0,0.00019546,2]
[321987217,1712674253478,-500.0,0.00019546,2]
[321987218,1712674253486,-500.0,0.00019546,2]
[321987219,1712674253495,-522.52,0.00019546,2]
[321987220,1712674253504,-500.0,0.00019546,2]
[321987221,1712674253513,-1336.33,0.00019546,2]
[321987222,1712674253522,-500.0,0.00019546,2]
[321987223,1712674253532,-2456.8,0.00019546,2]
[321987224,1712674253542,-500.0,0.00019546,2]
[321987225,1712674253551,-591.45,0.00019546,2]
[321987226,1712674253562,-500.0,0.00019546,2]
[321987227,1712674253572,-750.33,0.00019546,2]
[321987228,1712674253581,-25335.88,0.00019546,2]
[321987229,1712674253590,-500.0,0.00019546,2]
[321987230,1712674253598,-5449.32,0.00019546,2]
[321987231,1712674253608,-500.0,0.00019546,2]
[321987232,1712674253618,-500.0,0.00019546,2]
[321987233,1712674253627,-1941.86,0.00019546,2]
[321987234,1712674253637,-1188.17,0.00019546,2]
[321987235,1712674253646,-671.65,0.00019546,2]
[321987236,1712674253655,-500.0,0.00019546,2]
[321987237,1712674253665,-500.0,0.00019546,2]
[321987238,1712674253674,-532.4,0.00019546,2]
[321987239,1712674253686,-1567.94,0.00019546,2]
[321987240,1712674253695,-1504.3,0.00019546,2]
[321987241,1712674253704,-500.0,0.00019546,2]
[321987242,1712674253714,-500.0,0.00019546,2]
[321987243,1712674253723,-2247.8,0.00019546,2]
[321987244,1712674253736,-500.0,0.00019546,2]
[321987245,1712674253746,-2290.94,0.00019546,2]
[321987246,1712674253755,-845.45,0.00019546,2]
[321987247,1712674253764,-500.0,0.00019546,2]
[321987248,1712674253773,-500.0,0.00019546,2]
[321987249,1712674253782,-1058.37,0.00019546,2]
[321987250,1712674253792,-5394.8,0.00019546,2]
[321987251,1712674253801,-739.57,0.00019546,2]
[321987252,1712674253811,-596.77,0.00019546,2]
[321987253,1712674253820,-796.64,0.00019546,2]
[321987254,1712674253829,-533.26,0.00019546,2]
[321987255,1712674253837,-1159.74,0.00019546,2]
[321987256,1712674253846,-157.42869849,0.00019546,2]
[321987257,1712674253855,-500.0,0.00019546,2]
[321987258,1712674253865,-674.14,0.00019546,2]
[321987259,1712674253874,-955.98,0.00019546,2]
[321987260,1712674253883,-662.17,0.00019546,2]
[321987261,1712674253892,-500.0,0.00019546,2]
[321987262,1712674253902,-500.0,0.00019546,2]
[321987263,1712674253911,-7576.6438,0.00019548,2]
[321987264,1712674253921,-42744.42176779,0.00019566,2]
[321987265,1712674253930,-2064.62,0.00019646,2]
[321987266,1712674253940,-1044.56,0.00019646,2]
[321987267,1712674253953,-500.0,0.00019646,2]
[321987268,1712674253963,-2161.49,0.00019646,2]
[321987269,1712674253972,-3099.5,0.00019646,2]
[321987270,1712674253986,-1872.56,0.00019646,2]
[321987271,1712674253995,-2988.29,0.00019646,2]
[321987272,1712674254005,-1990.94,0.00019646,2]
[321987273,1712674254018,-1319.66,0.00019646,2]
[321987274,1712674254028,-8699.85,0.00019646,2]
[321987275,1712674254037,-1796.89,0.00019646,2]
[321987276,1712674254047,-1485.3,0.00019646,2]
[321987277,1712674254056,-2374.35,0.00019646,2]
[321987278,1712674254065,-1678.5,0.00019646,2]
[321987279,1712674254074,-2478.4,0.00019646,2]
[321987280,1712674254084,-2388.46,0.00019646,2]
[321987281,1712674254093,-867.67,0.00019647,2]
[321987282,1712674254102,-1377.78,0.00019647,2]
[321987283,1712674254111,-500.0,0.00019647,2]
[321987284,1712674254122,-500.0,0.00019647,2]
[321987285,1712674254131,-996.33,0.00019647,2]
[321987286,1712674254140,-1242.33,0.00019647,2]
[321987287,1712674254150,-633.54,0.00019647,2]
[321987288,1712674254160,-500.0,0.00019647,2]
[321987289,1712674254169,-995.86,0.00019647,2]
[321987290,1712674254179,-677.51,0.00019647,2]
[321987291,1712674254188,-968.13,0.00019647,2]
[321987292,1712674254311,-500.0,0.00019647,2]
[321987293,1712674254325,-722.49,0.00019647,2]
[321987294,1712674254334,-929.29,0.00019647,2]
[321987295,1712674254344,-996.3,0.00019647,2]
[321987296,1712674254354,-1496.23,0.00019647,2]
[321987297,1712674254363,-500.0,0.00019647,2]
[321987298,1712674254372,-500.0,0.00019647,2]
[321987299,1712674254381,-526.7,0.00019647,2]
[321987300,1712674254390,-723.42,0.00019647,2]
[321987301,1712674254399,-755.38,0.00019647,2]
[321987302,1712674254408,-500.0,0.00019647,2]
[321987303,1712674254417,-846.23,0.00019647,2]
[321987304,1712674254427,-1469.96,0.00019647,2]
[321987305,1712674254436,-620.59,0.00019647,2]
[321987306,1712674254445,-912.19,0.00019647,2]
[321987307,1712674254454,-655.82,0.00019647,2]
[321987308,1712674254464,-609.59,0.00019647,2]
[321987309,1712674254473,-838.95,0.00019647,2]
[321987310,1712674254485,-835.18,0.00019647,2]
[321987311,1712674254495,-740.5,0.00019647,2]
[321987312,1712674254504,-778.86,0.00019647,2]
[321987313,1712674254514,-522.35,0.00019647,2]
[321987314,1712674254523,-939.82,0.00019647,2]
[321987315,1712674254532,-1432.79,0.00019647,2]
[321987316,1712674254541,-500.0,0.00019647,2]
[321987317,1712674254551,-986.13,0.00019647,2]
[321987318,1712674254560,-819.33,0.00019647,2]
[321987319,1712674254570,-511.14,0.00019647,2]
[321987320,1712674254580,-1246.15,0.00019647,2]
[321987321,1712674254590,-500.0,0.00019647,2]
[321987322,1712674254600,-1047.27,0.00019647,2]
[321987323,1712674254611,-500.0,0.00019647,2]
[321987324,1712674254620,-744.01,0.00019647,2]
[321987325,1712674254631,-500.0,0.00019647,2]
[321987326,1712674254641,-549.49,0.00019647,2]
[321987327,1712674254650,-518.48,0.00019647,2]
[321987328,1712674254660,-500.0,0.00019647,2]
[321987329,1712674254670,-500.0,0.00019647,2]
[321987330,1712674254680,-928.24,0.00019648,2]
[321987331,1712674254690,-500.0,0.00019648,2]
[321987332,1712674254700,-500.0,0.00019648,2]
[321987333,1712674254711,-839.67,0.00019648,2]
[321987334,1712674254721,-807.44,0.00019648,2]
[321987335,1712674254737,-500.0,0.00019648,2]
[321987336,1712674254746,-500.0,0.00019648,2]
[321987337,1712674254756,-839.96,0.00019648,2]
[321987338,1712674254765,-782.38,0.00019648,2]
[321987339,1712674254775,-500.0,0.00019648,2]
[321987340,1712674254785,-500.0,0.00019648,2]
[321987341,1712674254795,-710.19,0.00019648,2]
[321987342,1712674254805,-998.01,0.00019648,2]
[321987343,1712674254815,-799.18,0.00019648,2]
[321987344,1712674254824,-1217.46,0.00019648,2]
[321987345,1712674254834,-719.9,0.00019679,2]
[321987346,1712674254844,-10802.28252931,0.0001972,2]
[321987347,1712674254854,-1182.45,0.00019726,2]
[321987348,1712674254864,-1818.84,0.00019726,2]
[321987349,1712674254874,-2025.12,0.00019726,2]
[321987350,1712674254883,-595.89,0.00019726,2]
[321987351,1712674254894,-1712.57,0.00019726,2]
[321987352,1712674254904,-2288.52,0.00019726,2]
[321987353,1712674254913,-1460.5,0.00019726,2]
[321987354,1712674254923,-1415.21,0.00019726,2]
[321987355,1712674254938,-857.50818386,0.00019726,2]
[321987356,1712674254963,-3648.22181614,0.00019726,2]
[321987357,1712674254973,-509.81955186,0.00019726,2]
[321987358,1712674254992,-1764.75,0.00019726,2]
[321987359,1712674255004,-12.02044814,0.00019726,2]
[321987360,1712674255015,-283.58748755,0.00019726,2]
[321987361,1712674255027,-2431.62,0.00019726,2]
[321987362,1712674255042,-9235.82251245,0.00019726,2]
[321987363,1712674255055,-1103.96,0.00019726,2]
[321987364,1712674255072,-2504.4,0.00019726,2]
[321987365,1712674255085,-3610.9,0.00019726,2]
[321987366,1712674255097,-1259.35,0.00019726,2]
[321987367,1712674255108,-3315.94,0.00019726,2]
[321987368,1712674255117,-1780.88,0.00019726,2]
[321987369,1712674255127,-1616.26,0.00019726,2]
[321987370,1712674255137,-1393.67,0.00019726,2]